fUST/lending_fUST_20260117
["ID","MTS","AMOUNT","RATE_DAILY","PERIOD"]
[402255960,1768626638603,-500.0,0.00015464,2]
[402255961,1768626638612,-500.0,0.00015464,2]
[402255962,1768626638622,-2500.0,0.00015464,2]
[402255963,1768626638631,-500.0,0.00015464,2]
[402255964,1768626638640,-652.45719651,0.0001554,5]
[402255965,1768626638649,-300.0,0.00015864,2]
[402255966,1768626638659,-652.45719651,0.0001588,9]
[402255967,1768626638668,-500.0,0.00016001,2]
[402255968,1768626638677,-567.1775226,0.00016001,2]
[402255969,1768626638687,-500.0,0.00016012,2]
[402255970,1768626638698,-3000.0,0.00016012,2]
[402255971,1768626638707,-652.45719651,0.0001622,13]
[402255972,1768626638716,-500.0,0.0001656,2]
[402255973,1768626638726,-3500.0,0.0001656,2]
[402255974,1768626638736,-652.45719651,0.00016561,16]
[402255975,1768626638746,-184.1,0.00016739,2]
[402255976,1768626638755,-500.0,0.00016751,2]
[402255977,1768626638764,-162.47616926,0.00016781,17]
[402255978,1768626638774,-652.45719651,0.00016901,20]
[402255979,1768626638783,-4000.0,0.00017108,2]
[402255980,1768626638792,-243.88865885,0.00017171,2]
[402255981,1768626638802,-652.45719651,0.00017241,24]
[402255982,1768626638811,-250.0,0.00017289,2]
[402255983,1768626638820,-500.0,0.00017361,2]
[402255984,1768626638829,-184.1,0.00017417,2]
[402255985,1768626638839,-219.50062079,0.00017481,2]
[402255986,1768626638848,-292.66749438,0.00017481,2]
[402255987,1768626638857,-1041.66666667,0.00017531,2]
[402255988,1768626638867,-473.03962036,0.00017534,2]
[402255989,1768626638876,-379.79683456,0.00017534,2]
[402255990,1768626638886,-1957.856,0.00017535,2]
[402255991,1768626638895,-445.202766,0.00017535,2]
[402255992,1768626638905,-162.380719,0.00017535,2]
[402255993,1768626638914,-168.3888056,0.00017535,2]
[402255994,1768626638923,-162.380719,0.00017535,2]
[402255995,1768626638933,-174.61919141,0.00017535,2]
[402255996,1768626638943,-181.08010149,0.00017535,2]
[402255997,1768626638952,-187.78006525,0.00017535,2]
[402255998,1768626638962,-194.72792766,0.00017535,2]
[402255999,1768626638971,-201.93286099,0.00017535,2]
[402256000,1768626638981,-209.40437684,0.00017535,2]
[402256001,1768626638990,-30000.0,0.00017535,2]
[402256002,1768626639001,-217.15233878,0.00017535,2]
[402256003,1768626639012,-225.18697532,0.00017535,2]
[402256004,1768626639022,-233.51889341,0.00017535,2]
[402256005,1768626639031,-242.15909246,0.00017535,2]
[402256006,1768626639041,-251.11897888,0.00017535,2]
[402256007,1768626639050,-260.4103811,0.00017535,2]
[402256008,1768626639059,-151.0,0.00017535,2]
[402256009,1768626639068,-270.0455652,0.00017535,2]
[402256010,1768626639078,-280.03725112,0.00017535,2]
[402256011,1768626639089,-276.0066676,0.00017535,2]
[402256012,1768626639099,-2150.738,0.00017535,2]
[402256013,1768626639109,-500.0,0.00017568,2]
[402256014,1768626639119,-652.45719651,0.00017581,28]
[402256015,1768626639129,-2030.296672,0.0001759,2]
[402256016,1768626639139,-436.72021913,0.00017625,2]
[402256017,1768626639148,-217.46240073,0.00017626,2]
[402256018,1768626639157,-289.94986764,0.00017626,2]
[402256019,1768626639167,-583.53537997,0.00017645,2]
[402256020,1768626639176,-480.48,0.00017646,3]
[402256021,1768626639186,-299.96136002,0.00017655,2]
[402256022,1768626639195,-5000.0,0.00017655,2]
[402256023,1768626639205,-4500.0,0.00017656,2]
[402256024,1768626639215,-652.45719651,0.00017921,31]
[402256025,1768626639224,-461.67526834,0.00018083,2]
[402256026,1768626639233,-1110.0,0.00018083,2]
[402256027,1768626639244,-299.74612378,0.00018083,2]
[402256028,1768626639255,-2230.315306,0.00018083,2]
[402256029,1768626639265,-184.1,0.00018096,2]
[402256030,1768626639275,-162.47616926,0.00018161,32]
[402256031,1768626639285,-500.0,0.00018203,2]
[402256032,1768626639294,-5000.0,0.00018204,2]
[402256033,1768626639304,-652.45719651,0.00018261,35]
[402256034,1768626639314,-500.0,0.00018341,2]
[402256035,1768626639324,-270.561,0.00018479,2]
[402256036,1768626639333,-198.153471,0.00018493,2]
[402256037,1768626639342,-652.45719651,0.00018601,39]
[402256038,1768626639351,-478.75725327,0.00018631,2]
[402256039,1768626639361,-2312.83697232,0.00018631,2]
[402256040,1768626639370,-5500.0,0.00018752,2]
[402256041,1768626639380,-184.1,0.00018774,2]
[402256042,1768626639389,-500.0,0.00018782,2]
[402256043,1768626639399,-187.8758819,0.0001885,2]
[402256044,1768626639408,-303.10001603,0.000189,2]
[402256045,1768626639418,-168.3888056,0.00018904,2]
[402256046,1768626639427,-187.87588186,0.00018907,2]
[402256047,1768626639437,-320.3,0.0001894,3]
[402256048,1768626639446,-160.15,0.0001894,3]
[402256049,1768626639456,-652.45719651,0.00018942,42]
[402256050,1768626639467,-500.0,0.00018949,2]
[402256051,1768626639477,-500.0,0.00018949,2]
[402256052,1768626639487,-500.0,0.0001895,7]
[402256053,1768626639496,-500.0,0.0001895,7]
[402256054,1768626639505,-500.0,0.0001895,7]
[402256056,1768626639514,-500.0,0.0001895,7]
[402256058,1768626639524,-500.0,0.0001895,7]
[402256060,1768626639533,-500.0,0.0001895,7]
[402256063,1768626639547,-500.0,0.0001895,7]
[402256065,1768626639556,-500.0,0.0001895,7]
[402256067,1768626639566,-500.0,0.0001895,7]
[402256069,1768626639575,-500.0,0.0001895,7]
[402256071,1768626639585,-500.0,0.0001895,7]
[402256073,1768626639595,-500.0,0.0001895,7]
[402256075,1768626639604,-500.0,0.0001895,7]
[402256077,1768626639613,-500.0,0.0001895,7]
[402256079,1768626639622,-500.0,0.0001895,7]
[402256081,1768626639632,-500.0,0.0001895,7]
[402256083,1768626639642,-500.0,0.0001895,7]
[402256085,1768626639651,-500.0,0.0001895,7]
[402256087,1768626639660,-500.0,0.0001895,7]
[402256089,1768626639669,-500.0,0.0001895,7]
[402256091,1768626639679,-500.0,0.0001895,7]
[402256093,1768626639688,-500.0,0.0001895,7]
[402256095,1768626639698,-500.0,0.0001895,7]
[402256097,1768626639707,-500.0,0.0001895,7]
[402256099,1768626639716,-500.0,0.0001895,7]
[402256101,1768626639725,-500.0,0.0001895,7]
[402256103,1768626639734,-500.0,0.0001895,7]
[402256105,1768626639746,-500.0,0.0001895,7]
[402256108,1768626639756,-500.0,0.0001895,7]
[402256110,1768626639765,-500.0,0.0001895,7]
[402256112,1768626639774,-500.0,0.0001895,7]
[402256114,1768626639783,-500.0,0.0001895,7]
[402256115,1768626639793,-500.0,0.0001895,7]
[402256118,1768626639802,-500.0,0.0001895,7]
[402256120,1768626639811,-500.0,0.0001895,7]
[402256121,1768626639820,-500.0,0.0001895,7]
[402256124,1768626639830,-500.0,0.0001895,7]
[402256126,1768626639839,-500.0,0.0001895,7]
[402256128,1768626639849,-500.0,0.0001895,7]
[402256129,1768626639858,-500.0,0.0001895,7]
[402256132,1768626639868,-500.0,0.0001895,7]
[402256134,1768626639877,-500.0,0.0001895,7]
[402256136,1768626639887,-500.0,0.0001895,7]
[402256138,1768626639896,-500.0,0.0001895,7]
[402256140,1768626639904,-500.0,0.0001895,7]
[402256142,1768626639913,-500.0,0.0001895,7]
[402256143,1768626639922,-500.0,0.0001895,7]
[402256145,1768626639931,-500.0,0.0001895,7]
[402256148,1768626639941,-500.0,0.0001895,7]
[402256150,1768626639950,-500.0,0.0001895,7]
[402256152,1768626639960,-500.0,0.0001895,7]
[402256154,1768626639969,-500.0,0.0001895,7]
[402256156,1768626639979,-500.0,0.0001895,7]
[402256158,1768626639988,-500.0,0.0001895,7]
[402256160,1768626639998,-500.0,0.0001895,7]
[402256162,1768626640011,-500.0,0.0001895,7]
[402256164,1768626640020,-500.0,0.0001895,7]
[402256166,1768626640030,-500.0,0.0001895,7]
[402256168,1768626640039,-500.0,0.0001895,7]
[402256170,1768626640055,-500.0,0.0001895,7]
[402256172,1768626640064,-500.0,0.0001895,7]
[402256174,1768626640073,-500.0,0.0001895,7]
[402256176,1768626640082,-500.0,0.0001895,7]
[402256178,1768626640092,-500.0,0.0001895,7]
[402256180,1768626640101,-500.0,0.0001895,7]
[402256182,1768626640111,-500.0,0.0001895,7]
[402256184,1768626640120,-500.0,0.0001895,7]
[402256186,1768626640129,-500.0,0.0001895,7]
[402256188,1768626640138,-500.0,0.0001895,7]
[402256190,1768626640151,-500.0,0.0001895,7]
[402256192,1768626640161,-478.69,0.0001895,7]
[402256194,1768626640170,-500.0,0.0001895,7]
[402256196,1768626640180,-500.0,0.0001895,7]
[402256198,1768626640189,-500.0,0.0001895,7]
[402256200,1768626640199,-500.0,0.0001895,7]
[402256202,1768626640208,-500.0,0.0001895,7]
[402256204,1768626640217,-500.0,0.0001895,7]
[402256206,1768626640227,-500.0,0.0001895,7]
[402256208,1768626640237,-180.10446059,0.00018953,2]
[402256210,1768626640246,-187.87588186,0.00018964,2]
[402256212,1768626640256,-609.9739064,0.00018986,2]
[402256214,1768626640265,-1204.6818702,0.00018986,2]
[402256216,1768626640275,-7215.81052514,0.0001899,2]
[402256218,1768626640284,-500.0,0.00018999,2]
[402256220,1768626640293,-500.0,0.00018999,2]
[402256222,1768626640303,-500.0,0.00018999,2]
[402256225,1768626640313,-500.0,0.00018999,2]
[402256227,1768626640322,-500.0,0.00018999,2]
[402256229,1768626640331,-998.87805324,0.00019,3]
[402256231,1768626640341,-202.0,0.00019,2]
[402256233,1768626640350,-187.87588186,0.00019021,2]
[402256235,1768626640360,-152.0,0.00019034,2]
[402256237,1768626640369,-152.0,0.00019034,2]
[402256239,1768626640378,-152.0,0.00019034,2]
[402256241,1768626640388,-152.0,0.00019034,2]
[402256243,1768626640397,-152.0,0.00019034,2]
[402256245,1768626640406,-152.0,0.00019034,2]
[402256247,1768626640415,-219.50062078,0.0001904,7]
[402256248,1768626640424,-313.57231541,0.0001904,7]
[402256251,1768626640435,-187.87588186,0.00019078,2]
[402256253,1768626640444,-10000.0,0.00019078,2]
[402256255,1768626640453,-303.10001603,0.00019089,2]
[402256256,1768626640463,-6808.9735842,0.0001909,2]
[402256259,1768626640473,-61329.8401964,0.0001909,2]
[402256261,1768626640482,-2553.5093059,0.0001909,2]
[402256263,1768626640492,-500.0,0.00019108,2]
[402256265,1768626640501,-276.16804017,0.00019171,2]
[402256267,1768626640511,-151.0,0.00019172,2]
[402256269,1768626640520,-151.0,0.00019172,2]
[402256271,1768626640529,-151.0,0.00019172,2]
[402256273,1768626640539,-301.61924279,0.00019172,2]
[402256275,1768626640549,-180.799,0.00019177,2]
[402256277,1768626640562,-500.0,0.00019177,2]
[402256279,1768626640573,-500.0,0.00019177,2]
[402256281,1768626640582,-500.96085982,0.00019177,2]
[402256283,1768626640593,-500.0,0.00019178,3]
[402256286,1768626640603,-500.0,0.00019178,3]
[402256288,1768626640613,-500.0,0.00019178,3]
[402256290,1768626640624,-500.0,0.00019178,3]
[402256292,1768626640633,-500.0,0.00019178,3]
[402256294,1768626640643,-1150.89344144,0.00019178,3]
[402256296,1768626640653,-500.0,0.00019178,3]
[402256298,1768626640663,-500.0,0.00019178,3]
[402256300,1768626640674,-500.0,0.00019178,3]
[402256302,1768626640684,-676.11,0.00019178,3]
[402256304,1768626640694,-500.0,0.00019178,3]
[402256306,1768626640704,-500.0,0.00019178,3]
[402256308,1768626640714,-506.48414027,0.00019178,3]
[402256311,1768626640725,-500.0,0.00019178,3]
[402256313,1768626640734,-514.07541886,0.00019178,3]
[402256315,1768626640743,-500.0,0.00019178,3]
[402256316,1768626640754,-500.0,0.00019178,3]
[402256317,1768626640765,-500.0,0.00019178,3]
[402256318,1768626640774,-500.0,0.00019178,3]
[402256319,1768626640784,-500.0,0.00019178,3]
[402256320,1768626640794,-502.70529972,0.00019178,3]
[402256321,1768626640804,-1469.91,0.00019178,3]
[402256322,1768626640815,-500.0,0.00019178,3]
[402256323,1768626640825,-827.02,0.00019178,3]
[402256324,1768626640836,-500.0,0.00019178,3]
[402256325,1768626640846,-615.40537901,0.00019178,3]
[402256326,1768626640856,-500.0,0.00019178,3]
[402256327,1768626640866,-500.0,0.00019178,3]
[402256328,1768626640876,-500.0,0.00019178,3]
[402256329,1768626640887,-500.0,0.00019178,3]
[402256330,1768626640898,-620.7003348,0.00019178,3]
[402256331,1768626640908,-500.0,0.00019178,3]
[402256332,1768626640917,-500.0,0.00019178,3]
[402256333,1768626640928,-1177.63,0.00019178,3]
[402256334,1768626640938,-500.0,0.00019178,3]
[402256335,1768626640948,-1000.0,0.00019178,2]
[402256336,1768626640958,-500.0,0.00019178,3]
[402256337,1768626640969,-884.72,0.00019178,3]
[402256338,1768626640979,-500.0,0.00019178,3]
[402256339,1768626640989,-500.0,0.00019178,3]
[402256340,1768626641000,-500.0,0.00019178,3]
[402256341,1768626641013,-500.0,0.00019178,3]
[402256342,1768626641023,-500.0,0.00019178,3]
[402256343,1768626641034,-500.0,0.00019178,3]
[402256344,1768626641045,-500.0,0.00019178,3]
[402256346,1768626641055,-500.0,0.00019178,3]
[402256348,1768626641064,-151.0,0.00019178,2]
[402256350,1768626641075,-172.631544,0.00019178,3]
[402256352,1768626641085,-502.61139783,0.00019178,3]
[402256354,1768626641095,-529.90813819,0.00019178,3]
[402256356,1768626641105,-500.0,0.00019178,3]
[402256358,1768626641116,-158.856128,0.00019178,3]
[402256360,1768626641125,-500.0,0.00019178,3]
[402256362,1768626641135,-500.0,0.00019178,3]
[402256364,1768626641144,-500.0,0.00019178,3]
[402256366,1768626641154,-500.0,0.00019178,3]
[402256368,1768626641164,-500.0,0.00019178,3]
[402256370,1768626641174,-500.0,0.00019178,3]
[402256372,1768626641183,-539.26284362,0.00019178,3]
[402256375,1768626641194,-500.0,0.00019178,3]
[402256378,1768626641214,-500.0,0.00019178,3]
[402256380,1768626641226,-500.0,0.00019178,3]
[402256382,1768626641238,-500.0,0.00019178,3]
[402256384,1768626641250,-537.24982539,0.00019178,3]
[402256387,1768626641261,-500.0,0.00019178,3]
[402256389,1768626641271,-500.0,0.00019178,3]
[402256391,1768626641282,-500.0,0.00019178,3]
[402256393,1768626641293,-500.0,0.00019178,3]
[402256395,1768626641304,-500.0,0.00019178,3]
[402256397,1768626641314,-500.0,0.00019178,3]
[402256399,1768626641325,-2803.76590103,0.00019178,2]
[402256402,1768626641335,-500.0,0.00019178,3]
[402256404,1768626641347,-500.0,0.00019178,3]
[402256406,1768626641358,-500.0,0.00019178,3]
[402256408,1768626641369,-703.74524116,0.00019178,2]
[402256410,1768626641379,-500.0,0.00019178,3]
[402256413,1768626641390,-500.0,0.00019178,3]
[402256415,1768626641400,-745.52,0.00019178,3]
[402256417,1768626641413,-685.61,0.00019178,3]
[402256419,1768626641423,-500.0,0.00019178,3]
[402256421,1768626641437,-789.14,0.00019178,3]
[402256423,1768626641449,-500.0,0.00019178,3]
[402256426,1768626641459,-641.97,0.00019178,3]
[402256428,1768626641471,-1026.15,0.00019178,3]
[402256430,1768626641481,-500.0,0.00019178,3]
[402256432,1768626641492,-519.23,0.00019178,3]
[402256434,1768626641503,-841.97,0.00019178,3]
[402256436,1768626641513,-1259.71,0.00019178,3]
[402256438,1768626641524,-500.0,0.00019178,3]
[402256441,1768626641534,-1010.7,0.00019178,3]
[402256443,1768626641545,-1718.36,0.00019178,3]
[402256445,1768626641556,-500.0,0.00019178,2]
[402256447,1768626641567,-500.0,0.00019178,3]
[402256449,1768626641577,-500.0,0.00019178,3]
[402256451,1768626641588,-500.0,0.00019178,3]
[402256453,1768626641598,-500.0,0.00019178,3]
[402256455,1768626641607,-1167.56,0.00019178,3]
[402256457,1768626641618,-500.0,0.00019178,3]
[402256460,1768626641629,-500.0,0.00019178,3]
[402256462,1768626641638,-500.0,0.00019178,3]
[402256464,1768626641648,-500.0,0.00019178,3]
[402256466,1768626641658,-500.0,0.00019178,3]
[402256468,1768626641668,-500.0,0.00019178,3]
[402256470,1768626641678,-151.0,0.00019178,2]
[402256472,1768626641688,-539.37412899,0.00019178,3]
[402256474,1768626641698,-888.63,0.00019178,3]
[402256476,1768626641708,-500.0,0.00019178,3]
[402256478,1768626641719,-500.0,0.00019178,3]
[402256480,1768626641729,-836.52,0.00019178,3]
[402256482,1768626641739,-500.0,0.00019178,3]
[402256484,1768626641750,-500.0,0.00019178,3]
[402256487,1768626641760,-500.0,0.00019178,3]
[402256489,1768626641771,-500.0,0.00019178,3]
[402256491,1768626641782,-1143.96,0.00019178,3]
[402256493,1768626641792,-500.0,0.00019178,3]
[402256495,1768626641803,-664.45,0.00019178,3]
[402256497,1768626641813,-568.77,0.00019178,3]
[402256499,1768626641823,-500.0,0.00019178,3]
[402256501,1768626641833,-500.0,0.00019178,3]
[402256503,1768626641843,-500.0,0.00019178,3]
[402256506,1768626641854,-1228.82,0.00019178,3]
[402256508,1768626641865,-500.0,0.00019178,3]
[402256510,1768626641876,-500.0,0.00019178,3]
[402256512,1768626641886,-557.16501593,0.00019178,3]
[402256514,1768626641897,-612.73,0.00019178,3]
[402256516,1768626641907,-500.0,0.00019178,3]
[402256518,1768626641917,-500.0,0.00019178,3]
[402256520,1768626641928,-546.84675493,0.00019178,3]
[402256523,1768626641938,-500.0,0.00019178,3]
[402256525,1768626641948,-165.19879319,0.00019178,3]
[402256527,1768626641958,-938.1,0.00019178,3]
[402256529,1768626641968,-500.0,0.00019178,3]
[402256531,1768626641978,-500.0,0.00019178,3]
[402256533,1768626641988,-407.41540498,0.00019178,3]
[402256535,1768626641998,-508.80948568,0.00019178,3]
[402256538,1768626642018,-500.0,0.00019178,3]
[402256540,1768626642030,-500.0,0.00019178,3]
[402256542,1768626642041,-500.0,0.00019178,3]
[402256544,1768626642052,-500.0,0.00019178,3]
[402256546,1768626642063,-500.0,0.00019178,3]
[402256548,1768626642074,-500.0,0.00019178,3]
[402256550,1768626642084,-500.0,0.00019178,3]
[402256553,1768626642096,-500.0,0.00019178,3]
[402256555,1768626642106,-500.0,0.00019178,3]
[402256557,1768626642116,-500.0,0.00019178,3]
[402256559,1768626642127,-500.0,0.00019178,3]
[402256561,1768626642138,-500.0,0.00019178,3]
[402256563,1768626642148,-524.02,0.00019178,3]
[402256565,1768626642158,-500.0,0.00019178,3]
[402256567,1768626642169,-500.0,0.00019178,3]
[402256569,1768626642180,-500.0,0.00019178,3]
[402256571,1768626642190,-500.0,0.00019178,3]
[402256573,1768626642201,-1487.55,0.00019178,3]
[402256575,1768626642211,-500.0,0.00019178,3]
[402256577,1768626642222,-500.0,0.00019178,3]
[402256580,1768626642232,-500.0,0.00019178,3]
[402256582,1768626642243,-569.27,0.00019178,3]
[402256584,1768626642252,-500.0,0.00019178,3]
[402256586,1768626642263,-580.66,0.00019178,3]
[402256588,1768626642274,-500.0,0.00019178,3]
[402256590,1768626642285,-500.0,0.00019178,3]
[402256592,1768626642296,-500.0,0.00019178,3]
[402256594,1768626642307,-500.0,0.00019178,3]
[402256596,1768626642318,-500.0,0.00019178,3]
[402256599,1768626642330,-628.66,0.00019178,3]
[402256602,1768626642341,-500.0,0.00019178,3]
[402256604,1768626642352,-545.96,0.00019178,3]
[402256606,1768626642363,-679.4,0.00019178,3]
[402256608,1768626642373,-2026.27,0.00019178,3]
[402256610,1768626642384,-500.0,0.00019178,3]
[402256612,1768626642395,-539.29487133,0.00019178,3]
[402256614,1768626642405,-500.0,0.00019178,3]
[402256616,1768626642416,-500.0,0.00019178,3]
[402256619,1768626642427,-500.22,0.00019178,3]
[402256621,1768626642437,-500.0,0.00019178,3]
[402256623,1768626642448,-552.18,0.00019178,3]
[402256625,1768626642459,-913.62,0.00019178,3]
[402256627,1768626642469,-500.0,0.00019178,3]
[402256629,1768626642479,-500.0,0.00019178,3]
[402256631,1768626642490,-451.40995778,0.00019178,3]
[402256633,1768626642501,-500.0,0.00019178,3]
[402256636,1768626642512,-500.0,0.00019178,3]
[402256638,1768626642523,-500.0,0.00019178,3]
[402256640,1768626642534,-500.0,0.00019178,3]
[402256642,1768626642545,-500.0,0.00019178,3]
[402256644,1768626642555,-502.92,0.00019178,3]
[402256646,1768626642566,-500.0,0.00019178,3]
[402256648,1768626642576,-510.39840049,0.00019178,3]
[402256650,1768626642588,-500.0,0.00019178,3]
[402256653,1768626642598,-500.0,0.00019178,3]
[402256655,1768626642608,-500.0,0.00019178,3]
[402256657,1768626642619,-500.0,0.00019178,3]
[402256659,1768626642630,-500.0,0.00019178,3]
[402256661,1768626642640,-512.26319681,0.00019178,3]
[402256663,1768626642650,-1063.36,0.00019178,3]
[402256665,1768626642660,-500.0,0.00019178,3]
[402256667,1768626642671,-500.0,0.00019178,3]
[402256669,1768626642681,-500.0,0.00019178,3]
[402256671,1768626642692,-506.16805049,0.00019178,2]
[402256673,1768626642702,-613.33,0.00019178,3]
[402256675,1768626642712,-1492.01,0.00019178,3]
[402256678,1768626642723,-500.0,0.00019178,3]
[402256680,1768626642733,-500.0,0.00019178,3]
[402256682,1768626642743,-699.23,0.00019178,3]
[402256684,1768626642753,-1931.52,0.00019178,3]
[402256686,1768626642763,-2079.09,0.00019178,3]
[402256688,1768626642773,-500.0,0.00019178,3]
[402256690,1768626642783,-1000.0,0.00019178,2]
[402256692,1768626642794,-805.73,0.00019178,3]
[402256695,1768626642804,-151.0,0.00019178,2]
[402256697,1768626642814,-528.74,0.00019178,3]
[402256699,1768626642825,-151.0,0.00019178,2]
[402256701,1768626642835,-1057.76,0.00019178,3]
[402256703,1768626642846,-151.0,0.00019178,2]
[402256705,1768626642856,-151.0,0.00019178,2]
[402256707,1768626642866,-500.0,0.00019178,3]
[402256709,1768626642876,-525.72,0.00019178,3]
[402256711,1768626642886,-500.0,0.00019178,3]
[402256713,1768626642896,-1306.77,0.00019178,3]
[402256715,1768626642906,-508.7492744,0.00019178,3]
[402256717,1768626642917,-500.0,0.00019178,3]
[402256720,1768626642927,-500.0,0.00019178,3]
[402256722,1768626642936,-500.0,0.00019178,3]
[402256724,1768626642947,-500.0,0.00019178,3]
[402256726,1768626642957,-500.0,0.00019178,3]
[402256728,1768626642967,-500.0,0.00019178,3]
[402256730,1768626642976,-500.0,0.00019178,3]
[402256732,1768626642986,-500.0,0.00019178,3]
[402256734,1768626642996,-500.0,0.00019178,3]
[402256736,1768626643009,-500.0,0.00019178,3]
[402256738,1768626643019,-500.0,0.00019178,3]
[402256740,1768626643029,-500.0,0.00019178,3]
[402256742,1768626643039,-1088.75,0.00019178,3]
[402256745,1768626643051,-500.0,0.00019178,3]
[402256747,1768626643060,-1720.39,0.00019178,3]
[402256749,1768626643071,-500.0,0.00019178,3]
[402256751,1768626643084,-1221.63,0.00019178,3]
[402256753,1768626643094,-1109.0,0.00019178,3]
[402256755,1768626643105,-845.08,0.00019178,3]
[402256757,1768626643114,-577.86,0.00019178,3]
[402256759,1768626643124,-500.0,0.00019178,3]
[402256761,1768626643135,-500.0,0.00019178,3]
[402256763,1768626643146,-500.0,0.00019178,3]
[402256765,1768626643157,-500.0,0.00019178,3]
[402256768,1768626643167,-500.0,0.00019178,3]
[402256770,1768626643177,-500.0,0.00019178,3]
[402256772,1768626643187,-500.0,0.00019178,3]
[402256774,1768626643198,-500.0,0.00019178,3]
[402256776,1768626643208,-1092.68,0.00019178,3]
[402256778,1768626643219,-674.07,0.00019178,3]
[402256780,1768626643230,-2379.93,0.00019178,3]
[402256782,1768626643241,-1336.73,0.00019178,3]
[402256784,1768626643253,-500.0,0.00019178,3]
[402256820,1768626643587,-500.0,0.00019178,3]
[402256822,1768626643597,-1048.21,0.00019178,3]
[402256824,1768626643606,-500.0,0.00019178,3]
[402256826,1768626643616,-460.4,0.00019178,3]
[402256828,1768626643626,-488.20495263,0.00019178,3]
[402256830,1768626643635,-1025.41,0.00019178,3]
[402256832,1768626643644,-500.0,0.00019178,3]
[402256834,1768626643654,-666.48,0.00019178,3]
[402256836,1768626643663,-500.0,0.00019178,3]
[402256838,1768626643673,-500.0,0.00019178,3]
[402256840,1768626643682,-535.27896173,0.00019178,3]
[402256842,1768626643692,-500.0,0.00019178,3]
[402256844,1768626643702,-2068.85,0.00019178,2]
[402256847,1768626643711,-1066.48,0.00019178,3]
[402256849,1768626643720,-500.0,0.00019178,3]
[402256851,1768626643730,-500.0,0.00019178,3]
[402256853,1768626643739,-500.0,0.00019178,3]
[402256854,1768626643748,-1200.0,0.00019178,3]
[402256856,1768626643758,-2537.0423,0.00019178,2]
[402256859,1768626643767,-1058.39,0.00019178,3]
[402256861,1768626643777,-200.0,0.00019178,2]
[402256863,1768626643786,-500.0,0.00019178,3]
[402256865,1768626643795,-500.0,0.00019178,3]
[402256867,1768626643806,-500.0,0.00019178,3]
[402256869,1768626643815,-500.0,0.00019178,3]
[402256870,1768626643825,-984.65,0.00019178,3]
[402256873,1768626643840,-615.64,0.00019178,3]
[402256875,1768626643850,-500.0,0.00019178,3]
[402256877,1768626643859,-500.0,0.00019178,3]
[402256879,1768626643869,-500.0,0.00019178,3]
[402256881,1768626643879,-2537.04,0.00019178,2]
[402256883,1768626643888,-1724.67,0.00019178,3]
[402256885,1768626643897,-500.0,0.00019178,3]
[402256887,1768626643907,-500.0,0.00019178,3]
[402256889,1768626643917,-500.0,0.00019178,3]
[402256891,1768626643926,-500.0,0.00019178,3]
[402256893,1768626643935,-539.45,0.00019178,3]
[402256895,1768626643945,-500.0,0.00019178,3]
[402256898,1768626643958,-1202.36,0.00019178,3]
[402256900,1768626643967,-500.0,0.00019178,3]